fUSD/lending_fUSD_20251118
["ID","MTS","AMOUNT","RATE_DAILY","PERIOD"]
[394313434,1763440242169,-152.0214574,0.00033288,2]
[394313435,1763440242178,-150.0,0.00033288,2]
[394313436,1763440242187,-151.05639579,0.00033288,2]
[394313437,1763440242197,-500.0,0.00033288,2]
[394313438,1763440242206,-500.0,0.00033288,2]
[394313439,1763440242215,-150.48386612,0.00033288,2]
[394313440,1763440242349,-168.83561987,0.00033288,2]
[394313441,1763440242391,-152.35854707,0.00033288,2]
[394313442,1763440242405,-150.0,0.00033288,2]
[394313443,1763440242414,-150.0,0.00033288,2]
[394313444,1763440242423,-164.09965824,0.00033288,2]
[394313445,1763440242432,-378.5,0.00033288,14]
[394313446,1763440242442,-150.0,0.00033288,2]
[394313447,1763440242451,-500.0,0.00033288,2]
[394313448,1763440242461,-152.30588994,0.00033288,2]
[394313449,1763440242471,-150.0,0.00033288,2]
[394313450,1763440242481,-500.0,0.00033288,2]
[394313451,1763440242490,-500.0,0.00033288,2]
[394313452,1763440242498,-500.0,0.00033288,2]
[394313453,1763440242507,-500.0,0.00033288,2]
[394313454,1763440242516,-500.0,0.00033288,2]
[394313455,1763440242524,-500.0,0.00033288,2]
[394313456,1763440242533,-500.0,0.00033288,2]
[394313457,1763440242542,-431.02570661,0.00033288,2]
[394313458,1763440242551,-500.0,0.00033288,2]
[394313459,1763440242560,-150.0,0.00033288,2]
[394313460,1763440242569,-500.0,0.00033288,2]
[394313461,1763440242580,-150.0,0.00033288,2]
[394313462,1763440242589,-500.0,0.00033288,2]
[394313463,1763440242599,-150.0,0.00033288,2]
[394313464,1763440242607,-500.0,0.00033288,2]
[394313465,1763440242617,-542.0,0.00033288,2]
[394313466,1763440242626,-157.98649049,0.00033288,2]
[394313467,1763440242635,-500.0,0.00033288,2]
[394313468,1763440242644,-500.0,0.00033288,2]
[394313469,1763440242653,-500.0,0.00033288,2]
[394313470,1763440242663,-500.0,0.00033288,2]
[394313471,1763440242672,-150.0,0.00033288,2]
[394313473,1763440242681,-500.0,0.00033288,2]
[394313474,1763440242690,-150.0,0.00033288,2]
[394313475,1763440242699,-500.0,0.00033288,2]
[394313476,1763440242708,-500.0,0.00033288,2]
[394313477,1763440242717,-150.0,0.00033288,2]
[394313478,1763440242726,-254.08193644,0.00033288,2]
[394313479,1763440242735,-1092.0,0.00033288,2]
[394313480,1763440242744,-500.0,0.00033288,2]
[394313481,1763440242753,-1006.09048778,0.00033298,2]
[394313482,1763440242763,-3968.61028141,0.00033314,2]
[394313483,1763440242772,-160.05462086,0.00033315,15]
[394313484,1763440242782,-151.0,0.00033336,31]
[394313485,1763440242790,-151.0,0.00033336,31]
[394313486,1763440242799,-151.0,0.00033336,31]
[394313487,1763440242808,-151.0,0.00033336,31]
[394313488,1763440242817,-502.34561,0.00033336,31]
[394313489,1763440242829,-151.0,0.00033336,31]
[394313490,1763440242838,-151.0,0.00033336,31]
[394313491,1763440242847,-502.34561,0.00033336,31]
[394313492,1763440242856,-151.0,0.00033336,31]
[394313493,1763440242865,-502.34561,0.00033336,31]
[394313494,1763440242874,-151.0,0.00033336,31]
[394313495,1763440242883,-502.34561,0.00033336,31]
[394313496,1763440242894,-151.0,0.00033336,31]
[394313497,1763440242903,-151.0,0.00033336,31]
[394313498,1763440242913,-151.0,0.00033336,31]
[394313499,1763440242923,-152.277222,0.00033336,31]
[394313500,1763440242933,-151.0,0.00033336,31]
[394313501,1763440242942,-151.0,0.00033336,31]
[394313502,1763440242951,-171.385229,0.00033336,31]
[394313503,1763440242960,-151.0,0.00033336,31]
[394313505,1763440242969,-151.0,0.00033336,31]
[394313506,1763440242979,-171.385229,0.00033336,31]
[394313508,1763440242989,-171.385229,0.00033336,31]
[394313510,1763440242998,-171.385229,0.00033336,31]
[394313512,1763440243007,-151.0,0.00033336,31]
[394313513,1763440243017,-153.629247,0.00033336,31]
[394313514,1763440243026,-151.0,0.00033336,31]
[394313515,1763440243035,-151.0,0.00033336,31]
[394313516,1763440243045,-151.0,0.00033336,31]
[394313517,1763440243053,-151.0,0.00033336,31]
[394313518,1763440243063,-151.0,0.00033336,31]
[394313519,1763440243073,-154.0078348,0.00033425,2]
[394313520,1763440243084,-150.0,0.00033425,2]
[394313521,1763440243094,-511.55408996,0.00033425,2]
[394313522,1763440243103,-576.87546424,0.00033425,2]
[394313523,1763440243113,-150.0,0.00033425,2]
[394313524,1763440243123,-150.0,0.00033425,2]
[394313525,1763440243132,-223.46824712,0.00033425,2]
[394313526,1763440243143,-500.0,0.00033425,2]
[394313527,1763440243152,-150.0,0.00033425,2]
[394313528,1763440243162,-500.0,0.00033425,2]
[394313529,1763440243171,-500.0,0.00033425,2]
[394313530,1763440243181,-500.0,0.00033425,2]
[394313531,1763440243190,-150.0,0.00033425,2]
[394313532,1763440243199,-500.0,0.00033425,2]
[394313533,1763440243208,-203.68663742,0.00033425,2]
[394313534,1763440243217,-500.0,0.00033425,2]
[394313535,1763440243226,-150.0,0.00033425,2]
[394313536,1763440243235,-500.0,0.00033425,2]
[394313537,1763440243245,-542.0,0.00033425,2]
[394313538,1763440243254,-500.0,0.00033425,2]
[394313539,1763440243263,-500.0,0.00033425,2]
[394313540,1763440243272,-500.0,0.00033425,2]
[394313541,1763440243281,-500.0,0.00033425,2]
[394313542,1763440243290,-500.0,0.00033425,2]
[394313543,1763440243299,-500.0,0.00033425,2]
[394313544,1763440243308,-500.0,0.00033425,2]
[394313545,1763440243317,-1092.0,0.00033425,2]
[394313546,1763440243328,-500.0,0.00033425,2]
[394313547,1763440243337,-2000.0,0.00033433,2]
[394313548,1763440243346,-1197.05821164,0.000335,2]
[394313549,1763440243355,-519.0,0.00033507,2]
[394313550,1763440243364,-150.0,0.00033562,2]
[394313551,1763440243373,-199.94211512,0.00033562,2]
[394313552,1763440243382,-243.41507889,0.00033562,2]
[394313553,1763440243393,-208.29198445,0.00033562,2]
[394313554,1763440243405,-150.0,0.00033562,2]
[394313555,1763440243414,-500.0,0.00033562,2]
[394313556,1763440243423,-616.35481778,0.00033562,2]
[394313557,1763440243432,-152.97984068,0.00033562,2]
[394313558,1763440243441,-150.0,0.00033562,2]
[394313559,1763440243451,-309.51643725,0.00033562,2]
[394313560,1763440243460,-500.0,0.00033562,2]
[394313561,1763440243470,-225.83205311,0.00033562,2]
[394313562,1763440243480,-500.0,0.00033562,2]
[394313563,1763440243489,-542.0,0.00033562,2]
[394313565,1763440243498,-500.0,0.00033562,2]
[394313566,1763440243507,-500.0,0.00033562,2]
[394313567,1763440243517,-500.0,0.00033562,2]
[394313568,1763440243526,-500.0,0.00033562,2]
[394313569,1763440243535,-500.0,0.00033562,2]
[394313570,1763440243544,-500.0,0.00033562,2]
[394313571,1763440243552,-500.0,0.00033562,2]
[394313572,1763440243562,-1092.0,0.00033562,2]
[394313573,1763440243571,-500.0,0.00033562,2]
[394313574,1763440243581,-378.5,0.00033562,14]
[394313575,1763440243591,-159.8,0.000336,14]
[394313576,1763440243600,-586.0,0.00033671,2]
[394313577,1763440243609,-150.0,0.00033699,2]
[394313578,1763440243618,-150.0,0.00033699,2]
[394313579,1763440243627,-500.0,0.00033699,2]
[394313580,1763440243635,-150.0,0.00033699,2]
[394313581,1763440243644,-500.0,0.00033699,2]
[394313582,1763440243654,-500.0,0.00033699,2]
[394313583,1763440243662,-542.0,0.00033699,2]
[394313584,1763440243671,-500.0,0.00033699,2]
[394313585,1763440243681,-500.0,0.00033699,2]
[394313586,1763440243690,-500.0,0.00033699,2]
[394313587,1763440243699,-500.0,0.00033699,2]
[394313588,1763440243707,-500.0,0.00033699,2]
[394313589,1763440243716,-636.01322182,0.00033699,2]
[394313590,1763440243725,-500.0,0.00033699,2]
[394313591,1763440243734,-1092.0,0.00033699,2]
[394313592,1763440243743,-500.0,0.00033699,2]
[394313593,1763440243752,-150.0,0.00033836,2]
[394313594,1763440243761,-150.0,0.00033836,2]
[394313595,1763440243770,-500.0,0.00033836,2]
[394313596,1763440243779,-201.33932851,0.00033836,2]
[394313597,1763440243787,-500.0,0.00033836,2]
[394313598,1763440243796,-315.7049293,0.00033836,2]
[394313599,1763440243806,-542.0,0.00033836,2]
[394313600,1763440243815,-315.59010477,0.00033836,2]
[394313601,1763440243823,-500.0,0.00033836,2]
[394313602,1763440243834,-500.0,0.00033836,2]
[394313603,1763440243843,-357.66337522,0.00033836,2]
[394313604,1763440243852,-500.0,0.00033836,2]
[394313605,1763440243862,-500.0,0.00033836,2]
[394313606,1763440243873,-1092.0,0.00033836,2]
[394313607,1763440243883,-500.0,0.00033836,2]
[394313608,1763440243894,-378.5,0.00033836,14]
[394313609,1763440243903,-821.0,0.00033874,2]
[394313610,1763440243913,-1662.672,0.00033874,2]
[394313611,1763440243923,-793.0,0.00033874,2]
[394313612,1763440243934,-1276.0,0.00033874,2]
[394313613,1763440243943,-1191.0,0.00033874,2]
[394313614,1763440243953,-911.482,0.00033874,2]
[394313615,1763440243962,-575.0,0.00033874,2]
[394313616,1763440243971,-609.0,0.00033874,2]
[394313617,1763440243980,-705.0,0.00033874,2]
[394313618,1763440243989,-205.07964062,0.00033973,2]
[394313619,1763440243999,-163.61190569,0.00033973,2]
[394313620,1763440244008,-500.0,0.00033973,2]
[394313621,1763440244017,-500.0,0.00033973,2]
[394313622,1763440244025,-542.0,0.00033973,2]
[394313623,1763440244034,-500.0,0.00033973,2]
[394313624,1763440244043,-500.0,0.00033973,2]
[394313625,1763440244053,-364.89356256,0.00033973,2]
[394313626,1763440244061,-500.0,0.00033973,2]
[394313627,1763440244070,-1092.0,0.00033973,2]
[394313628,1763440244079,-500.0,0.00033973,2]
[394313629,1763440244089,-976.96,0.00034,2]
[394313630,1763440244098,-374.79211688,0.0003411,2]
[394313631,1763440244107,-500.0,0.0003411,2]
[394313632,1763440244116,-542.0,0.0003411,2]
[394313633,1763440244125,-500.0,0.0003411,2]
[394313634,1763440244134,-500.0,0.0003411,2]
[394313635,1763440244144,-500.0,0.0003411,2]
[394313636,1763440244155,-1092.0,0.0003411,2]
[394313637,1763440244165,-500.0,0.0003411,2]
[394313638,1763440244174,-378.5,0.0003411,14]
[394313639,1763440244183,-500.0,0.00034247,2]
[394313640,1763440244192,-542.0,0.00034247,2]
[394313641,1763440244201,-500.0,0.00034247,2]
[394313642,1763440244211,-500.0,0.00034247,2]
[394313643,1763440244222,-500.0,0.00034247,2]
[394313644,1763440244232,-1092.0,0.00034247,2]
[394313645,1763440244242,-500.0,0.00034247,2]
[394313646,1763440244250,-500.0,0.00034384,2]
[394313647,1763440244259,-542.0,0.00034384,2]
[394313648,1763440244269,-500.0,0.00034384,2]
[394313649,1763440244278,-500.0,0.00034384,2]
[394313650,1763440244287,-642.36910911,0.00034384,2]
[394313651,1763440244296,-1092.0,0.00034384,2]
[394313652,1763440244305,-500.0,0.00034384,2]
[394313653,1763440244314,-378.54,0.00034384,14]
[394313654,1763440244323,-1710.0961792,0.0003449,2]
[394313655,1763440244332,-260.34755789,0.00034494,2]
[394313656,1763440244341,-300.0,0.00034521,4]
[394313657,1763440244349,-500.0,0.00034521,2]
[394313658,1763440244358,-542.0,0.00034521,2]
[394313659,1763440244367,-500.0,0.00034521,2]
[394313660,1763440244376,-500.0,0.00034521,2]
[394313661,1763440244385,-860.88611424,0.00034521,2]
[394313662,1763440244452,500.0,0.00041672,120]
[394313663,1763440244505,505.12991722,0.00041672,120]
[394313664,1763440244567,500.0,0.00041672,120]
[394313665,1763440244623,500.0,0.00041672,120]
[394313666,1763440244680,500.0,0.00041672,120]
[394313667,1763440244741,500.0,0.00041672,120]
[394313668,1763440244797,500.0,0.00041672,120]
[394313669,1763440244848,359.46392357,0.00041672,120]
[394313670,1763440244923,-3981.16016373,0.00021918,2]
[394313671,1763440244936,-1018.83983627,0.00021918,2]
[394313672,1763440244946,-383.298342,0.000248,7]
[394313673,1763440244955,-383.298342,0.000248,7]
[394313674,1763440244966,-1318.0,0.00033874,2]
[394313675,1763440244975,-231.11388576,0.00034521,2]
[394313676,1763440244984,-500.0,0.00034521,2]
[394313677,1763440244994,-500.0,0.00034658,2]
[394313678,1763440245003,-542.0,0.00034658,2]
[394313679,1763440245011,-500.0,0.00034658,2]
[394313680,1763440245021,-500.0,0.00034658,2]
[394313681,1763440245030,-1092.0,0.00034658,2]
[394313682,1763440245039,-500.0,0.00034658,2]
[394313683,1763440245048,-500.0,0.00034795,2]
[394313684,1763440245057,-542.0,0.00034795,2]
[394313685,1763440245066,-284.94007863,0.00034795,2]
[394313686,1763440245075,-500.0,0.00034795,2]
[394313687,1763440245086,-1092.0,0.00034795,2]
[394313688,1763440245095,-500.0,0.00034795,2]
[394313689,1763440245104,-2000.0,0.000349,120]
[394313690,1763440245113,-1000.0,0.000349,120]
[394313691,1763440245123,-1000.0,0.000349,120]
[394313692,1763440245132,-995.372,0.000349,120]
[394313693,1763440245141,-159.856,0.000349,90]
[394313694,1763440245150,-500.0,0.00034932,2]
[394313695,1763440245159,-542.0,0.00034932,2]
[394313696,1763440245168,-464.98085944,0.00034932,2]
[394313697,1763440245177,-1092.0,0.00034932,2]
[394313698,1763440245186,-500.0,0.00034932,2]
[394313699,1763440245199,-402.40204642,0.00035,2]
[394313700,1763440245208,-1222.66033566,0.00035,2]
[394313701,1763440245217,-500.0,0.00035069,2]
[394313702,1763440245226,-542.0,0.00035069,2]
[394313703,1763440245235,-1092.0,0.00035069,2]
[394313704,1763440245244,-500.0,0.00035069,2]
[394313705,1763440245253,-438.42907413,0.00035206,2]
[394313706,1763440245263,-542.0,0.00035206,2]
[394313707,1763440245272,-1092.0,0.00035206,2]
[394313708,1763440245281,-500.0,0.00035206,2]
[394313709,1763440245290,-542.0,0.00035343,2]
[394313710,1763440245299,-1092.0,0.00035343,2]
[394313711,1763440245308,-396.98486352,0.00035343,2]
[394313712,1763440245317,-542.0,0.0003548,2]
[394313713,1763440245326,-1092.0,0.0003548,2]
[394313714,1763440245337,-4985.3,0.000355,14]
[394313715,1763440245346,-230.57,0.00035524,2]
[394313716,1763440245354,-992.0,0.00035539,2]
[394313717,1763440245364,-444.9,0.00035616,2]
[394313718,1763440245373,-542.0,0.00035617,2]
[394313719,1763440245382,-1092.0,0.00035617,2]
[394313720,1763440245397,-542.0,0.00035754,2]
[394313721,1763440245406,-1092.0,0.00035754,2]
[394313722,1763440245415,-151.0,0.00035754,31]
[394313723,1763440245425,-259.549243,0.00035754,31]
[394313724,1763440245435,-151.0,0.00035754,31]
[394313725,1763440245445,-151.0,0.00035754,31]
[394313726,1763440245454,-151.0,0.00035754,31]
[394313727,1763440245463,-165.823155,0.00035754,31]
[394313728,1763440245475,-151.0,0.00035754,28]
[394313729,1763440245486,-151.0,0.00035754,28]
[394313730,1763440245496,-151.0,0.00035754,28]
[394313731,1763440245505,-151.0,0.00035754,28]
[394313732,1763440245516,-151.0,0.00035754,31]
[394313733,1763440245526,-151.0,0.00035754,31]
[394313734,1763440245537,-154.082696,0.00035754,31]
[394313735,1763440245547,-1618.0,0.0003577,2]
[394313736,1763440245556,-542.0,0.00035891,2]
[394313737,1763440245565,-1092.0,0.00035891,2]
[394313738,1763440245575,-992.0,0.00035963,2]
[394313739,1763440245586,-170.0,0.00036,30]
[394313740,1763440245602,-542.0,0.00036028,2]
[394313741,1763440245612,-1092.0,0.00036028,2]
[394313742,1763440245623,-1006.09048778,0.00036056,2]
[394313743,1763440245632,-3968.61028141,0.00036067,2]
[394313744,1763440245642,-992.0,0.00036075,120]
[394313745,1763440245651,-1620.0,0.00036158,120]
[394313746,1763440245660,-542.0,0.00036165,2]
[394313747,1763440245669,-1092.0,0.00036165,2]
[394313748,1763440245679,-992.0,0.00036167,7]
[394313749,1763440245688,-992.0,0.000362,7]
[394313750,1763440245697,-542.0,0.00036302,2]
[394313751,1763440245706,-1092.0,0.00036302,2]
[394313752,1763440245715,-1618.0,0.00036407,2]
[394313753,1763440245724,-500.0,0.00036438,2]
[394313754,1763440245733,-559.88620089,0.00036439,2]
[394313755,1763440245742,-1106.3903002,0.00036439,2]
[394313756,1763440245751,-992.0,0.00036531,2]
[394313757,1763440245760,-992.0,0.00036631,2]
[394313758,1763440245770,-992.0,0.00036656,120]
[394313759,1763440245779,-1590.21674865,0.000368,2]
[394313760,1763440245789,-4985.3,0.000368,14]
[394313761,1763440245798,-992.0,0.00036828,120]
[394313762,1763440245811,-821.0,0.00036874,2]
[394313763,1763440245820,-1599.0,0.00036874,2]
[394313764,1763440245830,-793.0,0.00036874,2]
[394313765,1763440245839,-1276.0,0.00036874,2]
[394313766,1763440245849,-1191.0,0.00036874,2]
[394313767,1763440245859,-907.0,0.00036874,2]
[394313768,1763440245869,-575.0,0.00036874,2]
[394313769,1763440245879,-609.0,0.00036874,2]
[394313770,1763440245888,-705.0,0.00036874,2]
[394313771,1763440245897,-1318.0,0.00036874,2]
[394313772,1763440245907,-9264.83929064,0.00037,5]
[394313773,1763440245917,-163.54326757,0.00037,2]
[394313774,1763440245927,-234.25332063,0.000372,120]
[394313775,1763440245936,-234.2533206,0.000372,120]
[394313776,1763440245945,-234.2533206,0.000372,120]
[394313777,1763440245954,-234.2533206,0.000372,120]
[394313778,1763440245964,-160.05462086,0.00037443,15]
[394313779,1763440245973,-250.0,0.00037453,2]
[394313780,1763440245983,-2654.0,0.000375,3]
[394313781,1763440245992,-150.0,0.00037504,7]
[394313782,1763440246002,-150.0,0.00037504,7]
[394313783,1763440246013,-150.0,0.00037504,7]
[394313784,1763440246022,-150.0,0.00037504,7]
[394313785,1763440246032,-150.0,0.00037504,7]
[394313786,1763440246041,-150.0,0.00037504,7]
[394313787,1763440246051,-150.0,0.00037504,7]
[394313788,1763440246060,-150.00000001,0.00037504,7]
[394313789,1763440246070,-150.0,0.00037504,7]
[394313790,1763440246079,-150.0,0.00037504,7]
[394313791,1763440246090,-150.0,0.00037504,7]
[394313792,1763440246100,-150.0,0.00037504,7]
[394313793,1763440246109,-1000.0,0.00037511,30]
[394313794,1763440246119,-1000.0,0.00037511,30]
[394313795,1763440246129,-326.89991503,0.00037516,2]
[394313796,1763440246138,-992.0,0.00037602,2]
[394313797,1763440246148,-500.0,0.00037661,2]
[394313798,1763440246157,-992.0,0.00037668,7]
[394313799,1763440246167,-992.0,0.00037675,2]
[394313800,1763440246177,-992.0,0.0003778,2]
[394313801,1763440246186,-159.8,0.000378,14]
[394313802,1763440246195,-150.0,0.00037825,7]
[394313803,1763440246205,-992.0,0.00037827,7]
[394313804,1763440246214,-992.0,0.00037836,2]
[394313805,1763440246224,-199.62763338,0.0003788,2]
[394313806,1763440246234,-1620.0,0.00037956,7]
[394313807,1763440246242,-260.34755789,0.00038033,2]
[394313808,1763440246252,-1620.0,0.00038063,2]
[394313809,1763440246261,-150.0,0.00038145,7]
[394313810,1763440246270,-992.0,0.00038164,2]
[394313811,1763440246279,-644.86,0.00038282,30]
[394313812,1763440246288,-4985.3,0.000383,14]
[394313813,1763440246297,-1618.0,0.00038321,120]
[394313814,1763440246306,-150.0,0.00038338,7]
[394313815,1763440246315,-150.0,0.00038338,7]
[394313816,1763440246325,-5518.0,0.000384,5]
[394313817,1763440246556,-992.0,0.00038424,2]
[394313818,1763440246567,-150.0,0.00038466,7]
[394313819,1763440246576,-150.0,0.00038546,7]
[394313820,1763440246586,-2000.0,0.000386,2]
[394313821,1763440246597,-150.0,0.00038786,7]
[394313822,1763440246607,-1006.09048778,0.00038814,2]
[394313823,1763440246616,-240.95229451,0.00038818,10]
[394313824,1763440246625,-3968.61028141,0.00038819,2]
[394313825,1763440246634,-150.0,0.00038893,7]
[394313826,1763440246643,-4958.17,0.00038904,2]
[394313827,1763440246653,-1618.0,0.00038916,2]
[394313828,1763440246662,-1618.0,0.00038969,7]
[394313829,1763440246671,-3378.21,0.00039028,2]
[394313830,1763440246680,-150.0,0.00039107,7]
[394313831,1763440246690,-150.0,0.00039171,7]
[394313832,1763440246699,-150.0,0.00039171,7]
[394313833,1763440246708,-379.61247236,0.0003919,2]
[394313834,1763440246717,-419.26869471,0.00039219,2]
[394313835,1763440246726,-150.0,0.00039427,7]
[394313836,1763440246735,-150.0,0.00039588,7]
[394313837,1763440246745,-150.0,0.00039588,7]
[394313838,1763440246754,-150.0,0.00039588,7]
[394313839,1763440246762,-150.0,0.00039588,7]
[394313840,1763440246771,-150.0,0.00039748,7]
[394313841,1763440246780,-4985.3,0.000398,14]
[394313842,1763440246789,-6346.0,0.00039837,5]
[394313843,1763440246798,-821.0,0.00039874,2]
[394313844,1763440246807,-1599.0,0.00039874,2]
[394313845,1763440246817,-793.0,0.00039874,2]
[394313846,1763440246826,-1276.0,0.00039874,2]
[394313847,1763440246837,-1191.0,0.00039874,2]
[394313848,1763440246846,-907.0,0.00039874,2]
[394313849,1763440246856,-575.0,0.00039874,2]
[394313850,1763440246865,-609.0,0.00039874,2]
[394313851,1763440246875,-705.0,0.00039874,2]
[394313852,1763440246885,-1318.0,0.00039874,2]
[394313853,1763440246894,-220.53382048,0.0003997,2]
[394313854,1763440246903,-1312.17981011,0.0004,120]
[394313856,1763440246912,-150.0,0.00040004,7]
[394313858,1763440246922,-150.0,0.00040004,7]
[394313860,1763440246931,-451.53707179,0.00040042,30]
[394313861,1763440246940,-150.0,0.00040068,7]
[394313862,1763440246950,-192.14,0.0004009,14]
[394313863,1763440246959,-220.53382048,0.00040138,2]
[394313864,1763440246968,-572.271,0.00040174,57]
[394313865,1763440246978,-150.0,0.00040282,7]
[394313866,1763440246987,-150.0,0.00040389,7]
[394313867,1763440246996,-220.53382048,0.00040522,2]
[394313868,1763440247005,-192.13959775,0.00040593,14]
[394313869,1763440247015,-1011.0,0.000406,7]
[394313870,1763440247023,-220.53382048,0.00040608,2]
[394313871,1763440247032,-150.0,0.00040629,7]
[394313872,1763440247041,-150.0,0.0004071,7]
[394313873,1763440247051,-700.06,0.00040712,2]
[394313874,1763440247061,-1022.27926442,0.00040827,2]
[394313875,1763440247070,-150.0,0.00040838,7]
[394313876,1763440247079,-150.0,0.00040838,7]
[394313877,1763440247090,-220.53382048,0.00040877,2]
[394313878,1763440247099,-150.0,0.0004103,7]
[394313879,1763440247109,-500.0,0.00041095,2]
[394313880,1763440247118,-500.0,0.00041095,2]
[394313881,1763440247127,-500.0,0.00041095,2]
[394313882,1763440247136,-500.0,0.00041095,2]
[394313883,1763440247146,-500.35613029,0.00041095,2]
[394313884,1763440247156,-300.0,0.00041095,2]
[394313885,1763440247165,-1984.02,0.00041095,2]
[394313886,1763440247174,-300.0,0.00041095,2]
[394313887,1763440247183,-500.0,0.00041095,2]
[394313888,1763440247193,-500.0,0.00041095,2]
[394313889,1763440247202,-500.0,0.00041095,2]
[394313890,1763440247211,-500.0,0.00041095,2]
[394313891,1763440247220,-8347.56,0.00041096,120]
[394313892,1763440247229,-1200.0,0.000412,15]
[394313893,1763440247242,-220.53382048,0.00041207,2]
[394313894,1763440247251,-2183.95913,0.0004126,8]
[394313895,1763440247260,-1500.0,0.000413,15]
[394313896,1763440247268,-150.0,0.00041351,30]
[394313897,1763440247278,-500.0,0.00041369,2]
[394313898,1763440247286,-500.0,0.00041369,2]
[394313899,1763440247295,-500.0,0.00041369,2]
[394313900,1763440247304,-500.0,0.00041369,2]
[394313901,1763440247314,-300.0,0.00041369,2]
[394313902,1763440247337,-1984.02,0.00041369,2]
[394313903,1763440247346,-300.0,0.00041369,2]
[394313904,1763440247355,-500.0,0.00041369,2]
[394313905,1763440247364,-500.0,0.00041369,2]
[394313906,1763440247374,-625.3051042,0.00041369,2]
[394313907,1763440247383,-500.0,0.00041369,2]
[394313908,1763440247392,-300.0,0.000414,15]
[394313909,1763440247405,-2183.95914,0.0004144,9]
[394313910,1763440247414,-1099.903,0.00041481,3]
[394313911,1763440247423,-300.0,0.000415,15]
[394313912,1763440247432,-163.12080412,0.0004157,15]
[394313913,1763440247441,-300.0,0.00041571,30]
[394313914,1763440247450,-500.0,0.00041571,2]
[394313915,1763440247459,-1006.09048778,0.00041572,4]
[394313916,1763440247470,-234.2533206,0.00041572,120]
[394313917,1763440247483,-3968.61028141,0.00041572,15]
[394313918,1763440247492,-260.34755789,0.00041572,28]
[394313919,1763440247501,-719.3941827,0.00041572,2]
[394313920,1763440247511,-219.07132176,0.00041572,2]
[394313921,1763440247522,-501.83990339,0.00041573,10]
[394313922,1763440247531,-151.0,0.00041597,14]
[394313923,1763440247541,-79495.35396756,0.000416,2]
[394313924,1763440247549,-1805.05,0.000416,120]
[394313925,1763440247559,-300.0,0.000416,15]
[394313926,1763440247568,-151.0,0.000416,120]
[394313927,1763440247578,-151.0,0.000416,120]
[394313928,1763440247589,-151.0,0.000416,120]
[394313929,1763440247598,-151.0,0.000416,120]
[394313930,1763440247607,-153.884434,0.000416,120]
[394313931,1763440247616,-151.0,0.000416,120]
[394313932,1763440247625,-151.0,0.000416,120]
[394313933,1763440247634,-227.633305,0.000416,120]
[394313934,1763440247644,-151.0,0.000416,120]
[394313935,1763440247653,-227.633305,0.000416,120]
[394313936,1763440247662,-151.0,0.000416,120]
[394313937,1763440247671,-227.633305,0.000416,120]
[394313938,1763440247684,-227.633305,0.000416,120]
[394313939,1763440247694,-151.0,0.000416,120]
[394313940,1763440247703,-151.0,0.000416,120]
[394313941,1763440247712,-151.0,0.000416,120]
[394313942,1763440247721,-151.0,0.000416,120]